lending/lending_fUSD_20240928
["ID","MTS","AMOUNT","RATE_DAILY","PERIOD"]
[339370426,1727497839601,-1439.07083368,0.000129,2]
[339370427,1727497839638,-1025.24744927,0.000129,2]
[339370428,1727497839650,-3170.01195793,0.000129,2]
[339370429,1727497839704,-70405.14806258,0.000129,2]
[339370430,1727497839762,-1399.85886565,0.000129,2]
[339370437,1727497842550,-778.84,0.000129,2]
[339370438,1727497842561,-478.6711612,0.000129,2]
[339370439,1727497842661,-627.59413878,0.000129,2]
[339370440,1727497842773,-869.95370905,0.000129,2]
[339370441,1727497842786,-1968.40098272,0.000129,2]
[339370474,1727497845631,-623.581,0.0001252,2]
[339370476,1727497845641,-313.86104662,0.00012772,2]
[339370478,1727497845653,-3630.06311789,0.00012772,2]
[339370482,1727497845695,-1535.31973549,0.00012772,2]
[339370483,1727497845704,-189023.36360482,0.000129,2]
[339370484,1727497845753,-1456.07591738,0.000129,2]
[339370485,1727498024664,937.93,9.988e-05,2]
[339370490,1727498121672,174.21,0.00010959,2]
[339370491,1727498172984,1050.0,0.00011,2]
[339370493,1727498648109,891.03,9.732e-05,2]
[339370614,1727498885724,171.43,0.00010959,2]
[339370627,1727499031888,-500.0,0.00011164,2]
[339370628,1727499031897,-177.48,0.00011368,2]
[339370629,1727499031906,-765.12,0.00011418,2]
[339370630,1727499031916,-250.0,0.00011428,2]
[339370631,1727499031925,-250.0,0.00011428,2]
[339370632,1727499031934,-354.83,0.00011453,2]
[339370633,1727499031943,-3311.0122,0.00011492,2]
[339370634,1727499031952,-300.0,0.00011588,2]
[339370635,1727499031961,-150.0,0.00011589,2]
[339370636,1727499031970,-150.00000001,0.00011589,2]
[339370637,1727499031979,-150.0,0.00011589,2]
[339370638,1727499031988,-150.0,0.00011589,2]
[339370639,1727499031997,-150.0,0.00011589,2]
[339370640,1727499032009,-150.0,0.00011589,2]
[339370641,1727499032018,-150.00000001,0.00011589,2]
[339370642,1727499032027,-150.0,0.00011589,2]
[339370643,1727499032035,-151.11046597,0.00011589,2]
[339370644,1727499032044,-150.93202374,0.00011589,2]
[339370645,1727499032053,-150.26158847,0.00011589,2]
[339370646,1727499032062,-1069.7890476,0.00011591,2]
[339370647,1727499032074,-655.60712406,0.00011591,2]
[339370648,1727499032084,-3834.18185265,0.00011591,2]
[339370649,1727499032095,-263.99149982,0.00011591,2]
[339370650,1727499032106,-440.57660707,0.00011591,2]
[339370651,1727499032117,-640.9,0.00011591,2]
[339370652,1727499032128,-340.28165674,0.00011591,2]
[339370653,1727499032139,-2946.57874193,0.00011591,2]
[339370654,1727499032149,-549.86575624,0.00011591,2]
[339370655,1727499032160,-1167.26,0.00011591,2]
[339370656,1727499032171,-3618.52771389,0.00011591,2]
[339370657,1727499032180,-161.44052357,0.000116,2]
[339370658,1727499032190,-500.0,0.000116,2]
[339370659,1727499032199,-250.0,0.00011607,2]
[339370660,1727499032208,-1000.0,0.00011627,2]
[339370661,1727499032217,-769.77326288,0.00011652,2]
[339370706,1727499094449,1337.1486,0.00011064,2]
[339370707,1727499195260,2187.28038826,0.00011064,2]
[339370708,1727499197170,906.97,9.617e-05,2]
[339370709,1727499395775,159.43,0.00010763,2]
[339370710,1727499476704,250.0,0.00010728,2]
[339370711,1727499504078,1500.0,0.00010959,2]
[339370712,1727499517510,250.0,0.00010809,2]
[339370713,1727499541277,4520.54,0.00010959,2]
[339370714,1727499543452,198.42,0.00010755,2]
[339370715,1727499730864,476.70431174,8.767e-05,2]
[339370716,1727499730889,416.63568826,8.767e-05,2]
[339370717,1727499731069,893.34,0.00011031,2]
[339370718,1727499805976,6713.9,0.00010708,2]
[339370719,1727499861096,1000.0,0.00010729,2]
[339370720,1727499893599,176.43,8.616e-05,2]
[339370723,1727499957063,10127.94330064,0.00011064,2]
[339370724,1727499984611,1050.0,0.00011,2]
[339370725,1727500011183,196.88,0.00010959,2]
[339370726,1727500025904,250.0,0.0001069,2]
[339370778,1727500083050,304.44,0.0001065,2]
[339370783,1727500141660,1788.62,0.00010959,2]
[339370791,1727500211404,250.0,0.00010661,2]
[339370805,1727500238142,-600.0,0.00011164,2]
[339370806,1727500238152,-500.0,0.00011164,2]
[339370807,1727500238162,-1877.86328613,0.00011167,2]
[339370808,1727500238172,-154.65,0.00011267,2]
[339370809,1727500238181,-154.65,0.00011272,2]
[339370810,1727500238191,-154.65,0.00011277,2]
[339370811,1727500238201,-422.08681491,0.00011279,2]
[339370812,1727500238210,-154.65,0.00011282,2]
[339370813,1727500238220,-154.65,0.00011287,2]
[339370814,1727500238229,-154.65,0.00011292,2]
[339370815,1727500238239,-154.65,0.00011298,2]
[339370816,1727500238249,-499.99,0.00011298,2]
[339370817,1727500238259,-5508.55,0.00011298,2]
[339370818,1727500238268,-154.65,0.00011303,2]
[339370819,1727500238278,-154.65,0.00011308,2]
[339370820,1727500238288,-154.65,0.00011313,2]
[339370821,1727500238297,-154.65,0.00011318,2]
[339370822,1727500238332,-154.65,0.00011323,2]
[339370823,1727500238342,-1788.62,0.00011507,2]
[339370824,1727500238353,-150.0,0.00011564,2]
[339370825,1727500238362,-150.00000001,0.00011564,2]
[339370826,1727500238371,-200.0,0.00011652,2]
[339370827,1727500238381,-150.0,0.00011699,2]
[339370828,1727500238391,-261.2524,0.00011735,2]
[339370829,1727500238400,-2500.0,0.00011735,2]
[339370830,1727500238410,-3803.1597,0.00011735,2]
[339370831,1727500238420,-1358.59172722,0.00011735,2]
[339370832,1727500238430,-200.0,0.00011769,2]
[339370833,1727500238439,-154.37,0.000118,2]
[339370834,1727500238452,-150.0,0.00011834,2]
[339370835,1727500238462,-10080.89607173,0.00011835,2]
[339370836,1727500238474,-1168.70766274,0.00011835,2]
[339370837,1727500238491,-1000.5183932,0.00011835,2]
[339370838,1727500238515,-2743.7382921,0.00011835,2]
[339370852,1727500240147,-141024.48964951,0.00011835,2]
[339370853,1727500240525,-726.33374646,0.00011835,2]
[339370855,1727500243091,-768.92487434,0.00011835,2]
[339370856,1727500243105,-452.90888698,0.00011835,2]
[339370857,1727500243364,-7367.11495268,0.00011835,2]
[339370862,1727500245991,-3992.41840448,0.00011835,2]
[339370863,1727500246101,-11573.11739038,0.00011835,2]
[339370866,1727500283430,866.88,9.671e-05,2]
[339370878,1727500462014,176.92719904,0.00011064,2]
[339370879,1727500563305,156.77,0.00010959,2]
[339370880,1727500798616,823.53,9.336e-05,2]
[339370881,1727500843169,155.39,0.000149,31]
[339370883,1727500973959,160.0,0.00011,2]
[339370886,1727501044434,156.8,0.00011,2]
[339370906,1727501181884,174.21,0.00010959,2]
[339370941,1727501393241,831.85,9.243e-05,2]
[339370963,1727501432208,-393.9067626,0.00011143,2]
[339370964,1727501432268,-27.0532374,0.00011143,2]
[339370965,1727501432279,-164.9,0.00011143,2]
[339370966,1727501432289,-250.0,0.00011147,2]
[339370967,1727501432300,-1755.52,0.0001115,2]
[339370968,1727501432311,-500.0,0.00011164,2]
[339370969,1727501432321,-500.0,0.00011164,2]
[339370970,1727501432333,-250.0,0.00011167,2]
[339370971,1727501432343,-4269.22,0.00011194,2]
[339370972,1727501432354,-1000.0,0.00011206,2]
[339370973,1727501432364,-300.0,0.00011245,2]
[339370974,1727501432375,-250.0,0.00011247,2]
[339370975,1727501432386,-831.85,0.00011507,2]
[339370976,1727501432396,-150.0,0.00011515,2]
[339370977,1727501432406,-3079.58,0.0001155,2]
[339370978,1727501432416,-357.53,0.00011607,2]
[339370979,1727501432426,-104.94157439,0.00011708,2]
[339370980,1727501432443,-707.07731665,0.00011708,2]
[339370981,1727501432456,-629.99914214,0.00011708,2]
[339370982,1727501432468,-313.50196682,0.00011708,2]
[339370983,1727501432479,-58.19057808,0.00011735,2]
[339370984,1727501432492,-2944.07580152,0.00011735,2]
[339370985,1727501432505,-1129.6222204,0.00011735,2]
[339370986,1727501432515,-1222.578,0.00011735,2]
[339370987,1727501432525,-499.99,0.00011735,2]
[339370988,1727501432535,-459.0609329,0.00011935,2]
[339370989,1727501432548,-509.0,0.00011935,2]
[339370990,1727501432571,-9031.9390671,0.00011935,2]
[339370991,1727501432581,-304.44,0.00011982,2]
[339370992,1727501432591,-150.0,0.00011999,2]
[339370993,1727501432602,-12117.86781135,0.00012,2]
[339370994,1727501432614,-1864.4957053,0.00012,3]
[339370995,1727501432624,-430.62,0.00012055,2]
[339370996,1727501432635,-302.08,0.00012055,2]
[339370997,1727501432646,-301.09,0.00012055,2]
[339370998,1727501432656,-428.48,0.00012055,2]
[339370999,1727501432668,-428.48,0.00012055,2]
[339371000,1727501432678,-428.48,0.00012055,2]
[339371001,1727501432690,-3079.58,0.00012127,2]
[339371003,1727501432700,-150.0,0.00012155,2]
[339371005,1727501432710,-180.0,0.00012239,2]
[339371007,1727501432720,-1755.52,0.00012265,2]
[339371009,1727501432730,-1250.0,0.000123,2]
[339371011,1727501432739,-2539.7978,0.00012325,2]
[339371013,1727501432749,-4253.0155,0.00012325,2]
[339371015,1727501432758,-2249.6309,0.00012345,2]
[339371017,1727501432768,-4072.07145953,0.00012345,2]
[339371019,1727501432779,-420.0,0.00012354,2]
[339371021,1727501432790,-2500.0,0.000124,2]
[339371023,1727501432800,-173.317537,0.00012406,2]
[339371025,1727501432810,-159.815024,0.00012406,2]
[339371027,1727501432820,-2697.292037,0.00012406,2]
[339371028,1727501432831,-534.18706311,0.00012407,2]
[339371029,1727501432844,-466.31735353,0.00012407,2]
[339371030,1727501432857,-3071.56704285,0.00012407,2]
[339371031,1727501432867,-382.2237,0.0001242,2]
[339371032,1727501432878,-558.0,0.00012425,2]
[339371033,1727501432889,-810.0,0.00012425,2]
[339371034,1727501432899,-1904.0,0.00012425,2]
[339371035,1727501432910,-554.0,0.00012425,2]
[339371036,1727501432920,-807.0,0.00012425,2]
[339371037,1727501432931,-1911.0,0.00012425,2]
[339371038,1727501432943,-3349.0,0.00012425,2]
[339371039,1727501432953,-5869.0,0.00012425,2]
[339371040,1727501432964,-3327.908,0.00012425,2]
[339371041,1727501432974,-398.049,0.00012425,2]
[339371042,1727501432984,-150.0,0.00012425,2]
[339371043,1727501432995,-1296.0,0.00012425,2]
[339371044,1727501433006,-167.16,0.00012445,2]
[339371045,1727501433016,-167.57,0.00012445,2]
[339371046,1727501433027,-168.63,0.00012445,2]
[339371047,1727501433038,-168.32,0.00012445,2]
[339371048,1727501433049,-169.14,0.00012445,2]
[339371049,1727501433061,-168.91,0.00012445,2]
[339371050,1727501433072,-4072.07145949,0.00012468,2]
[339371051,1727501433083,-3276.1614,0.000125,2]
[339371052,1727501433094,-1080.9386,0.000125,2]
[339371053,1727501433105,-13894.94860229,0.000125,2]
[339371057,1727501438259,-736.6837575,0.00011935,2]
[339371058,1727501438274,-1503.9378076,0.00011935,2]
[339371059,1727501438286,-518.62206885,0.00011935,2]
[339371060,1727501438318,-2730.40354718,0.00011935,2]
[339371061,1727501438436,-569.5689955,0.00011935,2]
[339371062,1727501438448,-3940.78382337,0.00011935,2]
[339371063,1727501438458,-448.0,0.00012425,2]
[339371064,1727501438468,-6988.13215408,0.000125,2]
[339371065,1727501438481,-12170.69944363,0.000125,2]
[339371066,1727501438491,-176.54754254,0.000125,2]
[339371067,1727501438502,-150.0,0.0001252,2]
[339371068,1727501438512,-4072.07145949,0.0001253,2]
[339371069,1727501438521,-164.9,0.00012536,2]
[339371070,1727501438531,-173.317537,0.00012561,2]
[339371071,1727501438542,-159.815024,0.00012561,2]
[339371072,1727501438552,-2129.21871334,0.00012561,2]
[339371073,1727501438564,-568.07332366,0.00012561,2]
[339371074,1727501438575,-300.0,0.00012586,2]
[339371075,1727501438588,-150.0,0.00012586,2]
[339371076,1727501438599,-150.0,0.00012586,2]
[339371077,1727501438609,-150.0,0.00012586,2]
[339371078,1727501438620,-150.0,0.00012586,2]
[339371082,1727501438915,-150.0,0.00012586,2]
[339371083,1727501438932,-150.27,0.00012586,2]
[339371084,1727501438948,-80.67430579,0.00012592,2]
[339371085,1727501438959,-2695.03570632,0.00012592,2]
[339371086,1727501438972,-1296.36144738,0.00012592,2]
[339371087,1727501438981,-1009.0,0.000126,2]
[339371088,1727501438991,-1000.0,0.000126,3]
[339371089,1727501439000,-1000.0,0.000126,3]
[339371090,1727501439009,-1000.0,0.000126,2]
[339371091,1727501439018,-1000.0,0.000126,2]
[339371092,1727501439029,-1000.0,0.000126,2]
[339371093,1727501439038,-134.90469622,0.000126,3]
[339371094,1727501439203,-313.999999,0.000126,3]
[339371095,1727501439216,-551.09530478,0.000126,3]
[339371096,1727501439225,-563.38218228,0.000126,2]
[339371097,1727501439237,-436.61781772,0.000126,2]
[339371098,1727501439247,-1000.0,0.000126,2]
[339371099,1727501439256,-1000.0,0.000126,2]
[339371100,1727501439270,-1000.0,0.000126,2]
[339371101,1727501439279,-1001.0,0.000126,2]
[339371102,1727501439288,-1000.0,0.000126,3]
[339371103,1727501439298,-1129.0,0.000126,2]
[339371104,1727501439307,-487.45669253,0.00012607,2]
[339371105,1727501439319,-512.54330747,0.00012607,2]
[339371106,1727501439327,-487.57950281,0.00012643,2]
[339371107,1727501439339,-712.42049719,0.00012643,2]
[339371108,1727501439348,-176.54754254,0.0001265,2]
[339371109,1727501439357,-515.23196027,0.00012653,2]
[339371110,1727501439368,-815.0,0.00012653,2]
[339371111,1727501439379,-300.45999998,0.00012653,2]
[339371112,1727501439390,-300.0,0.00012653,2]
[339371113,1727501439401,-1275.15327242,0.00012653,2]
[339371114,1727501439412,-866.22622682,0.00012653,2]
[339371115,1727501439421,-1500.0,0.00012675,2]
[339371116,1727501439431,-2522.05139285,0.00012676,2]
[339371117,1727501439446,-349.87799986,0.00012676,2]
[339371118,1727501439457,-258.696003,0.00012676,2]
[339371119,1727501439468,-4369.37460429,0.00012676,2]
[339371120,1727501439476,-243.36089124,0.00012677,2]
[339371121,1727501439485,-398.96127359,0.00012677,2]
[339371122,1727501439494,-398.96127357,0.00012679,2]
[339371123,1727501439503,-154.88093771,0.0001268,2]
[339371124,1727501439512,-187.13567576,0.0001268,2]
[339371125,1727501439521,-398.96127357,0.0001268,2]
[339371126,1727501439530,-168.53963025,0.00012696,2]
[339371127,1727501439539,-187.84529459,0.00012696,2]
[339371128,1727501439548,-888.80243208,0.00012696,2]
[339371129,1727501439557,-150.0,0.00012697,2]
[339371130,1727501439566,-797.134,0.000127,2]
[339371131,1727501439576,-160.454,0.000127,2]
[339371132,1727501439584,-3079.58,0.00012705,2]
[339371133,1727501439594,-4072.07145949,0.00012715,2]
[339371134,1727501439603,-173.317537,0.00012716,2]
[339371135,1727501439613,-159.815024,0.00012716,2]
[339371136,1727501439623,-2697.292037,0.00012716,2]
[339371137,1727501439632,-888.80243206,0.00012748,2]
[339371138,1727501439641,-155.99,0.00012766,2]
[339371139,1727501439651,-187.68785555,0.00012766,2]
[339371140,1727501439660,-150.0,0.00012771,2]
[339371141,1727501439669,-150.0,0.00012772,2]
[339371142,1727501439678,-500.0,0.00012773,2]
[339371143,1727501439689,-150.0,0.00012773,2]
[339371144,1727501439698,-150.0,0.00012774,2]
[339371145,1727501439707,-500.0,0.00012775,2]
[339371146,1727501439716,-500.0,0.00012775,2]
[339371147,1727501439726,-311.46367107,0.00012775,2]
[339371148,1727501439735,-500.0,0.00012775,2]
[339371149,1727501439744,-500.0,0.00012775,2]
[339371150,1727501439753,-466.69382954,0.00012775,2]
[339371151,1727501439763,-22509.27486764,0.00012776,2]
[339371153,1727501440152,-4541.70621115,0.00011935,2]
[339371154,1727501440163,-628.91,0.00012425,2]
[339371155,1727501440172,-795.97554921,0.00012776,2]
[339371156,1727501440183,-8226.57446297,0.00012776,2]
[339371157,1727501440220,-141504.15348901,0.00012776,2]
[339371158,1727501440229,-270756.92297878,0.00012776,2]
[339371159,1727501440284,-2361.58316493,0.00012776,2]
[339371160,1727501440296,-6315.3454475,0.00012776,2]
[339371161,1727501440306,-126481.30690273,0.00012776,2]
[339371162,1727501440317,-639.92034794,0.00012776,2]
[339371163,1727501440329,-1333.56179996,0.00012776,2]
[339371164,1727501440340,-3274.40791948,0.00012776,2]
[339371165,1727501440351,-26803.72980253,0.00012776,2]
[339371166,1727501440361,-986.74112289,0.00012777,2]
[339371167,1727501440371,-4853.09999989,0.00012777,2]
[339371168,1727501440382,-4925.52846422,0.00012777,2]
[339371169,1727501440470,-12884.577,0.000124,2]
[339371170,1727501440480,-2436.17288315,0.00012777,2]
[339371171,1727501440489,-4072.07145949,0.00012777,2]
[339371172,1727501440498,-11419.42491256,0.00012778,2]
[339371173,1727501440508,-572.59713768,0.00012779,2]
[339371174,1727501440517,-151.0,0.0001278,2]
[339371175,1727501440526,-151.0,0.0001278,2]
[339371176,1727501440535,-151.0,0.0001278,2]
[339371177,1727501440544,-768.0,0.0001278,2]
[339371178,1727501440553,-151.0,0.0001278,2]
[339371179,1727501440562,-151.0,0.0001278,2]
[339371180,1727501440571,-151.0,0.0001278,2]
[339371181,1727501440580,-151.0,0.0001278,2]
[339371182,1727501440588,-151.0,0.0001278,2]
[339371183,1727501440597,-273.728523,0.0001278,2]
[339371184,1727501440607,-151.0,0.0001278,2]
[339371185,1727501440615,-151.0,0.0001278,2]
[339371186,1727501440624,-151.453097,0.0001278,2]
[339371187,1727501440634,-286.698376,0.0001278,2]
[339371188,1727501440643,-536.654337,0.0001278,2]
[339371189,1727501440653,-151.0,0.0001278,2]
[339371190,1727501440662,-536.654337,0.0001278,2]
[339371191,1727501440671,-151.0,0.0001278,2]
[339371192,1727501440680,-151.0,0.0001278,2]
[339371193,1727501440689,-151.0,0.0001278,2]
[339371194,1727501440698,-151.0,0.0001278,2]
[339371195,1727501440707,-151.0,0.0001278,2]
[339371196,1727501440716,-151.0,0.0001278,2]
[339371197,1727501440725,-20133.71472469,0.0001278,2]
[339371198,1727501441005,150.0,0.0001111,2]
[339371202,1727501443240,-698.3526,0.0001278,2]
[339371203,1727501443254,-977.39069926,0.0001278,2]
[339371204,1727501443267,-927.77,0.0001278,2]
[339371205,1727501443300,-13982.33467738,0.0001278,2]
[339371206,1727501443313,-2456.37844139,0.0001278,2]
[339371207,1727501443324,-3177.3396,0.0001278,2]
[339371208,1727501443361,-1280.14,0.0001278,2]
[339371209,1727501443373,-374.72962927,0.0001278,2]
[339371210,1727501443429,-24953.74057698,0.0001278,2]
[339371215,1727501444447,155.4,0.000149,31]
[339371216,1727501444505,155.4,0.000149,31]
[339371217,1727501444558,155.4,0.000149,31]
[339371218,1727501444635,155.4,0.000149,31]
[339371219,1727501444683,155.4,0.000149,31]
[339371220,1727501444747,155.4,0.000149,31]
[339371221,1727501444804,155.4,0.000149,31]
[339371226,1727501446244,-1268.765,0.00012425,2]
[339371227,1727501446254,-186.63000522,0.0001278,2]
[339371228,1727501446274,-38880.56576062,0.0001278,2]
[339371229,1727501446284,-6488.44889042,0.0001278,2]
[339371230,1727501446296,-5337.63867122,0.0001278,2]
[339371231,1727501446505,-58083.72611508,0.0001278,2]
[339371232,1727501446516,-300.0,0.0001278,2]
[339371233,1727501446528,-6084.5,0.0001278,2]
[339371234,1727501446539,-1861.594756,0.0001278,2]
[339371235,1727501446550,-404.48230813,0.0001278,2]
[339371236,1727501446561,-3583.18203615,0.0001278,2]
[339371237,1727501446573,-18101.6106962,0.0001278,2]
[339371239,1727501446584,-15015.76540038,0.0001278,2]
[339371241,1727501446599,-2603.16398746,0.0001278,2]
[339371244,1727501446610,-2121.22391962,0.0001278,2]
[339371246,1727501446627,-1081.0,0.00012425,2]
[339371248,1727501446636,-10780.77782766,0.0001278,2]
[339371250,1727501446647,-12918.06001583,0.0001278,2]
[339371314,1727501754484,171.43,0.00010959,2]
[339371315,1727501796525,1050.0,0.00011,2]
[339371316,1727501809409,2002.0,0.000136,60]
[339371317,1727501847627,-600.0,0.00011164,2]
[339371318,1727501847650,-500.0,0.00011164,2]
[339371319,1727501847672,-363.0,0.00011164,2]
[339371320,1727501927868,500.0,0.00011164,2]
[339371321,1727502042571,804.6,9.513e-05,2]
[339371328,1727502449257,1540.4,0.000103,5]
[339371329,1727502449277,1549.6,0.000103,5]
[339371352,1727502573533,764.37,9.314e-05,2]
[339371364,1727502632387,-9045.64,0.00011185,2]
[339371365,1727502632398,-210.48,0.00011214,2]
[339371366,1727502632408,-702.2,0.00011278,2]
[339371367,1727502632418,-300.0,0.00011314,2]
[339371368,1727502632428,-250.0,0.00011315,2]
[339371369,1727502632437,-600.0,0.00011348,2]
[339371370,1727502632447,-332.3,0.00011377,2]
[339371371,1727502632457,-250.0,0.00011389,2]
[339371372,1727502632467,-1378.74,0.00011514,2]
[339371373,1727502632477,-150.0,0.00011534,2]
[339371374,1727502632486,-150.0,0.00011564,2]
[339371375,1727502632496,-238.92,0.00011564,2]
[339371376,1727502632505,-764.37,0.00011578,2]
[339371377,1727502632515,-400.0,0.00011653,2]
[339371378,1727502632526,-702.2,0.00011842,2]
[339371379,1727502632537,-150.0,0.00011899,2]
[339371380,1727502632549,-3712.4026,0.000119,2]
[339371381,1727502632558,-1249.03332884,0.000119,2]
[339371382,1727502632570,-1283.39985363,0.000119,2]
[339371383,1727502632582,-716.18874666,0.000119,2]
[339371384,1727502632597,-3369.09,0.000119,2]
[339371385,1727502632609,-5853.03008476,0.000119,2]
[339371386,1727502632620,-2693.29304679,0.000119,2]
[339371390,1727502638418,-559.12249875,0.000119,2]
[339371392,1727502638585,-376.38059136,0.000119,2]
[339371393,1727502638596,-999.19583264,0.000119,2]
[339371394,1727502638715,-6607.8,0.000119,2]
[339371395,1727502638766,-25582.22405266,0.000119,2]
[339371401,1727502643199,-286.02,0.00011489,2]
[339371403,1727502643208,-56429.13086391,0.000119,2]
[339371404,1727502643218,-3416.9018,0.000119,2]
[339371405,1727502643227,-323.26866607,0.0001199,2]
[339371406,1727502643236,-151.82626453,0.0001199,2]
[339371407,1727502643246,-156.54,0.0001199,2]
[339371408,1727502643255,-463.67569124,0.00011999,2]
[339371411,1727502643264,-448568.0,0.00012,2]
[339371412,1727502643274,-150.0,0.00012082,2]
[339371413,1727502643283,-1378.74,0.00012089,2]
[339371414,1727502643293,-151.82626448,0.00012106,2]
[339371415,1727502643304,-151.82626448,0.00012221,2]
[339371416,1727502643313,-180.0,0.00012276,2]
[339371418,1727502643323,-323.26866607,0.00012293,2]
[339371420,1727502643332,-185.7454158,0.000123,2]
[339371422,1727502643341,-1250.0,0.000123,2]
[339371424,1727502643350,-151.82626448,0.00012337,2]
[339371426,1727502643359,-499.27319209,0.00012385,2]
[339371428,1727502643368,-3348.46763433,0.00012394,2]
[339371430,1727502643378,-161701.8234,0.000124,2]
[339371432,1727502643388,-6920.75,0.000124,2]
[339371434,1727502643397,-6228.532487,0.00012406,2]
[339371436,1727502643406,-194.872908,0.00012406,2]
[339371438,1727502643415,-372.055596,0.00012406,2]
[339371439,1727502643426,-5039.333306,0.00012406,2]
[339371440,1727502643435,-1840.68412,0.00012406,2]
[339371441,1727502643444,-155.023166,0.00012406,2]
[339371442,1727502643452,-194.872908,0.00012406,2]
[339371443,1727502643461,-173.317539,0.00012406,2]
[339371444,1727502643471,-702.2,0.00012406,2]
[339371445,1727502643481,-1296.0,0.00012425,2]
[339371446,1727502643490,-632.854,0.00012425,2]
[339371447,1727502643499,-1263.0,0.00012425,2]
[339371449,1727502643507,-453.778,0.00012425,2]
[339371450,1727502643516,-933.0,0.00012425,2]
[339371451,1727502643526,-809.0,0.00012425,2]
[339371452,1727502643535,-1904.0,0.00012425,2]
[339371453,1727502643544,-554.0,0.00012425,2]
[339371454,1727502643553,-1911.0,0.00012425,2]
[339371455,1727502643562,-3349.0,0.00012425,2]
[339371456,1727502643571,-807.0,0.00012425,2]
[339371457,1727502643580,-181.12,0.00012425,2]
[339371458,1727502643589,-5867.0,0.00012425,2]
[339371459,1727502643598,-11400.174,0.00012425,2]
[339371460,1727502643607,-1147.0,0.00012425,2]
[339371461,1727502643616,-1081.0,0.00012425,2]
[339371462,1727502643626,-420.0,0.00012429,2]
[339371463,1727502643635,-153.53,0.00012445,2]
[339371464,1727502643644,-167.16,0.00012445,2]
[339371465,1727502643653,-151.82626448,0.00012453,2]
[339371466,1727502643662,-3348.46763433,0.00012496,2]
[339371467,1727502643671,-1500.0,0.00012548,2]
[339371468,1727502643680,-6228.532487,0.00012561,2]
[339371469,1727502643690,-372.055596,0.00012561,2]
[339371470,1727502643701,-5039.333306,0.00012561,2]
[339371471,1727502643710,-1840.68412,0.00012561,2]
[339371472,1727502643718,-151.0,0.00012561,2]
[339371473,1727502643727,-151.0,0.00012561,2]
[339371474,1727502643736,-151.0,0.00012561,2]
[339371475,1727502643745,-151.0,0.00012561,2]
[339371476,1727502643754,-151.0,0.00012561,2]
[339371477,1727502643765,-151.0,0.00012561,2]
[339371478,1727502643774,-151.0,0.00012561,2]
[339371479,1727502643782,-151.0,0.00012561,2]
[339371480,1727502643793,-151.0,0.00012561,2]
[339371481,1727502643803,-151.0,0.00012561,2]
[339371482,1727502643812,-151.0,0.00012561,2]
[339371483,1727502643821,-151.0,0.00012561,2]
[339371484,1727502643830,-482.988904,0.00012561,2]
[339371485,1727502643839,-151.0,0.00012561,2]
[339371486,1727502643848,-482.988904,0.00012561,2]
[339371487,1727502643857,-151.0,0.00012561,2]
[339371488,1727502643866,-151.0,0.00012561,2]
[339371489,1727502643875,-151.0,0.00012561,2]
[339371490,1727502643884,-151.0,0.00012561,2]
[339371491,1727502643893,-151.0,0.00012561,2]
[339371492,1727502643902,-151.0,0.00012568,2]
[339371493,1727502643911,-151.0,0.00012568,2]
[339371494,1727502643920,-151.82626448,0.00012569,2]
[339371495,1727502643928,-1500.0,0.00012581,2]
[339371496,1727502643938,-258.3421482,0.00012583,2]
[339371498,1727502643947,-3348.46763433,0.00012597,2]
[339371499,1727502643956,-323.26866607,0.00012597,2]